fUSD/lending_fUSD_20251023
["ID","MTS","AMOUNT","RATE_DAILY","PERIOD"]
[392154748,1761217843807,-500.0,0.00044873,10]
[392154749,1761217843816,-500.0,0.00044873,10]
[392154750,1761217843826,-155555.0,0.00044873,120]
[392154751,1761217843835,-388.78162999,0.00044881,120]
[392154752,1761217843844,-1425.0,0.00044883,2]
[392154753,1761217843854,-500.0,0.00044889,120]
[392154754,1761217843863,-1000.0,0.00044889,120]
[392154755,1761217843872,-995.63702356,0.00044889,120]
[392154756,1761217843881,-500.0,0.00044889,30]
[392154757,1761217843890,-500.0,0.00044889,120]
[392154758,1761217843900,-2100.0,0.00044898,30]
[392154759,1761217843909,-1000.0,0.00044898,14]
[392154760,1761217843918,-150.0,0.00044898,14]
[392154761,1761217843927,-2100.0,0.00044899,30]
[392154762,1761217843939,-2100.0,0.00044899,30]
[392154763,1761217844066,-2100.0,0.00044899,30]
[392154764,1761217844076,-1001.7878,0.00044899,2]
[392154765,1761217844086,-500.0,0.00044899,120]
[392154766,1761217844095,-310.0618569,0.00044899,2]
[392154767,1761217844105,-500.0,0.00044899,30]
[392154768,1761217844115,-500.0,0.00044899,120]
[392154769,1761217844124,-635.77148682,0.000449,17]
[392154770,1761217844133,-580.24976083,0.000449,28]
[392154771,1761217844143,-179.0441645,0.000449,120]
[392154772,1761217844152,-15028.7698018,0.000449,120]
[392154773,1761217844161,-600.0,0.000449,16]
[392154774,1761217844170,-155.47681905,0.000449,120]
[392154775,1761217844179,-155.47681905,0.000449,120]
[392154776,1761217844188,-155.47,0.000449,120]
[392154777,1761217844197,-155.47681905,0.000449,120]
[392154778,1761217844205,-155.47681905,0.000449,120]
[392154779,1761217844214,-155.47681905,0.000449,120]
[392154780,1761217844223,-155.47681905,0.000449,120]
[392154781,1761217844231,-155.47681905,0.000449,120]
[392154782,1761217844240,-155.47681905,0.000449,120]
[392154783,1761217844249,-197.79612584,0.000449,120]
[392154784,1761217844258,-508.18941481,0.000449,2]
[392154785,1761217844268,-5979.71750796,0.000449,2]
[392154786,1761217844277,-16344.04554745,0.000449,15]
[392154787,1761217844285,-696.018,0.00044907,120]
[392154788,1761217844295,-358.93177751,0.00044931,120]
[392154789,1761217844305,-500.0,0.00044931,120]
[392154790,1761217844314,-500.0,0.00044931,120]
[392154791,1761217844326,-500.0,0.00044931,120]
[392154792,1761217844336,-500.0,0.00044931,120]
[392154793,1761217844345,-500.0,0.00044931,120]
[392154794,1761217844356,-540.03,0.00044931,120]
[392154795,1761217844368,-500.0,0.00044931,120]
[392154796,1761217844377,-500.0,0.00044931,120]
[392154797,1761217844386,-500.0,0.00044931,120]
[392154798,1761217844396,-966.23149753,0.00044938,14]
[392154799,1761217844405,-500.0,0.00044944,120]
[392154800,1761217844415,-500.0,0.00044944,120]
[392154801,1761217844425,-500.0,0.00044944,120]
[392154802,1761217844434,-500.0,0.00044944,120]
[392154803,1761217844443,-500.0,0.00044944,120]
[392154804,1761217844452,-500.0,0.00044944,120]
[392154805,1761217844461,-2487.57,0.00044944,120]
[392154806,1761217844471,-500.0,0.00044944,120]
[392154807,1761217844480,-1474.39,0.00044944,120]
[392154808,1761217844490,-500.0,0.00044944,120]
[392154809,1761217844500,-500.0,0.00044944,120]
[392154810,1761217844510,-500.0,0.00044944,120]
[392154811,1761217844519,-500.0,0.00044944,120]
[392154812,1761217844529,-500.0,0.00044944,120]
[392154813,1761217844539,-500.0,0.00044944,120]
[392154814,1761217844548,-500.0,0.00044944,120]
[392154815,1761217844558,-2102.24,0.00044944,30]
[392154816,1761217844568,-500.0,0.00044944,120]
[392154817,1761217844577,-500.0,0.00044944,120]
[392154818,1761217844586,-1292.99,0.00044944,120]
[392154819,1761217844595,-500.0,0.00044944,120]
[392154820,1761217844604,-500.0,0.00044944,120]
[392154821,1761217844614,-2019.21,0.00044944,120]
[392154822,1761217844624,-500.0,0.00044944,120]
[392154823,1761217844633,-500.0,0.00044944,120]
[392154824,1761217844643,-160.79188135,0.0004495,28]
[392154825,1761217844652,-1000.0,0.00044954,14]
[392154826,1761217844661,-151.17320606,0.00044954,2]
[392154827,1761217844671,-1646.38979585,0.00044956,120]
[392154828,1761217844680,-2317.56623346,0.00044956,120]
[392154829,1761217844690,-1000.0,0.00044957,14]
[392154830,1761217844699,-116615.08010977,0.00044961,120]
[392154831,1761217844709,-116615.08010977,0.00044963,120]
[392154832,1761217844719,-1646.38979585,0.00044963,120]
[392154833,1761217844728,-17622.67049193,0.00044964,120]
[392154834,1761217844737,-1646.38979585,0.00044965,120]
[392154835,1761217844746,-4451.60461396,0.00044969,120]
[392154836,1761217844756,-742.45984123,0.0004497,3]
[392154837,1761217844765,-500.0,0.0004497,120]
[392154838,1761217844774,-1000.0,0.0004497,14]
[392154839,1761217844783,-17622.67049193,0.00044971,120]
[392154840,1761217844792,-500.0,0.00044973,3]
[392154841,1761217844801,-500.0,0.00044973,10]
[392154842,1761217844811,-501.50763164,0.00044973,2]
[392154843,1761217844820,-500.0,0.00044973,10]
[392154844,1761217844829,-502.7281344,0.00044973,10]
[392154845,1761217844839,-160.19052345,0.00044973,10]
[392154846,1761217844848,-200.0,0.00044973,10]
[392154847,1761217844858,-502.52024895,0.00044973,10]
[392154848,1761217844869,-160.17732397,0.00044973,10]
[392154849,1761217844879,-500.0,0.00044973,10]
[392154850,1761217844888,-159.983392,0.00044973,10]
[392154851,1761217844897,-160.17732801,0.00044973,10]
[392154852,1761217844906,-165.03398142,0.00044973,10]
[392154853,1761217844915,-500.0,0.00044973,10]
[392154854,1761217844925,-160.17732397,0.00044973,5]
[392154855,1761217844933,-160.16977216,0.00044973,10]
[392154856,1761217844943,-160.177328,0.00044973,10]
[392154857,1761217844952,-463.47527647,0.00044973,5]
[392154858,1761217844962,-160.177328,0.00044973,10]
[392154859,1761217844971,-159.983392,0.00044973,10]
[392154860,1761217844982,-161.7246526,0.00044973,10]
[392154861,1761217844992,-500.55267325,0.00044973,10]
[392154862,1761217845002,-160.17732799,0.00044973,5]
[392154863,1761217845013,-500.0,0.00044973,10]
[392154864,1761217845023,-504.56261558,0.00044973,10]
[392154865,1761217845033,-500.0,0.00044973,10]
[392154866,1761217845042,-160.177328,0.00044973,10]
[392154867,1761217845052,-160.177328,0.00044973,7]
[392154868,1761217845061,-500.0,0.00044973,10]
[392154869,1761217845071,-500.99082641,0.00044973,10]
[392154870,1761217845081,-504.27470638,0.00044973,10]
[392154871,1761217845090,-502.97445239,0.00044973,10]
[392154872,1761217845099,-500.0,0.00044973,10]
[392154873,1761217845109,-160.177328,0.00044973,10]
[392154874,1761217845119,-116615.08010977,0.00044973,120]
[392154875,1761217845129,-15948.56297987,0.00044974,120]
[392154876,1761217845139,-1646.38979585,0.00044975,120]
[392154877,1761217845148,-1718.0110532,0.00044978,120]
[392154878,1761217845157,-2317.56623346,0.00044978,120]
[392154879,1761217845167,-1718.0110532,0.00044985,120]
[392154880,1761217845176,-500.0,0.00044985,120]
[392154881,1761217845185,-500.0,0.00044985,30]
[392154882,1761217845195,-500.0,0.00044985,120]
[392154883,1761217845204,-4451.60461396,0.00044986,120]
[392154884,1761217845214,-999.0,0.00044986,120]
[392154885,1761217845223,-116615.08010977,0.00044986,120]
[392154886,1761217845233,-4647.0,0.00044986,120]
[392154887,1761217845244,-1226.0,0.00044986,120]
[392154888,1761217845253,-30986.0,0.00044986,120]
[392154889,1761217845263,-294.50317793,0.00044986,30]
[392154890,1761217845272,-170.53623901,0.00044986,30]
[392154891,1761217845281,-290.38939256,0.00044986,30]
[392154892,1761217845291,-155.07678216,0.00044986,30]
[392154893,1761217845300,-240.3713252,0.00044986,30]
[392154894,1761217845309,-151.84445495,0.00044986,30]
[392154895,1761217845319,-150.0,0.00044986,30]
[392154896,1761217845328,-150.0,0.00044986,30]
[392154897,1761217845337,-150.0,0.00044986,30]
[392154898,1761217845347,-150.00000001,0.00044986,30]
[392154899,1761217845359,-150.0,0.00044986,30]
[392154900,1761217845369,-184.08724656,0.00044986,30]
[392154901,1761217845378,-2317.56623346,0.00044987,120]
[392154902,1761217845387,-4451.60461396,0.00044988,120]
[392154903,1761217845397,-15948.56297987,0.0004499,120]
[392154904,1761217845407,-4282.2653439,0.0004499,2]
[392154905,1761217845417,-47549.2238905,0.0004499,2]
[392154906,1761217845426,-952.17012909,0.0004499,7]
[392154907,1761217845436,-15948.56297987,0.00044991,120]
[392154908,1761217845446,-1425.0,0.00044992,2]
[392154909,1761217845455,-17622.67049193,0.00044992,120]
[392154910,1761217845465,-2317.56623346,0.00044993,120]
[392154911,1761217845474,-1718.0110532,0.00044993,120]
[392154912,1761217845483,-4451.60461396,0.00044995,120]
[392154913,1761217845492,-500.0,0.00044995,120]
[392154914,1761217845502,-500.0,0.00044995,30]
[392154915,1761217845511,-500.0,0.00044995,120]
[392154916,1761217845520,-743.285,0.00044996,2]
[392154917,1761217845529,-4590.9961815,0.00044996,2]
[392154918,1761217845681,-166.66,0.00041218,30]
[392154919,1761217845691,-166.66,0.00042085,30]
[392154920,1761217845701,-166.66,0.00042953,30]
[392154921,1761217845710,-166.66,0.00043821,30]
[392154922,1761217845719,-166.66,0.00044689,30]
[392154923,1761217845729,-7074.94016005,0.00044996,2]
[392154924,1761217845740,-72943.54115715,0.00044996,2]
[392154925,1761217845749,-311.3696668,0.00044996,2]
[392154926,1761217845758,-15948.56297987,0.00044996,120]
[392154927,1761217845767,-150483.5554729,0.00044998,2]
[392154928,1761217845776,-311.7843581,0.00044999,30]
[392154929,1761217845786,-1055.99055337,0.00044999,60]
[392154930,1761217845795,-1208.07499122,0.00044999,60]
[392154931,1761217845804,-1208.07499122,0.00044999,60]
[392154932,1761217845813,-1208.07499122,0.00044999,60]
[392154933,1761217845822,-1208.07499122,0.00044999,60]
[392154934,1761217845831,-500.0,0.00044999,120]
[392154935,1761217845840,-500.0,0.00044999,120]
[392154936,1761217845850,-557.0,0.00044999,120]
[392154937,1761217845860,-500.0,0.00044999,120]
[392154938,1761217845869,-184.2059386,0.00044999,120]
[392154939,1761217845879,-5800.0,0.00044999,14]
[392154940,1761217845889,-500.0,0.00044999,30]
[392154941,1761217845898,-500.0,0.00044999,30]
[392154942,1761217845907,-500.0,0.00044999,30]
[392154943,1761217845919,-152.84304592,0.00044999,30]
[392154944,1761217845928,-500.0,0.00044999,120]
[392154945,1761217845937,-500.0,0.00044999,120]
[392154946,1761217845947,-200.0,0.00044999,30]
[392154947,1761217845956,-500.0,0.00044999,120]
[392154948,1761217845965,-250.0,0.00044999,120]
[392154949,1761217845974,-500.0,0.00044999,120]
[392154950,1761217845983,-167.30261624,0.00044999,30]
[392154951,1761217845993,-250.0,0.00044999,120]
[392154952,1761217846003,-500.0,0.00044999,120]
[392154953,1761217846012,-500.0,0.00044999,120]
[392154954,1761217846022,-250.0,0.00044999,120]
[392154955,1761217846032,-250.0,0.00044999,120]
[392154956,1761217846042,-500.0,0.00044999,120]
[392154958,1761217846051,-500.0,0.00044999,120]
[392154960,1761217846062,-500.0,0.00044999,120]
[392154961,1761217846072,-250.0,0.00044999,120]
[392154962,1761217846082,-250.0,0.00044999,120]
[392154963,1761217846093,-500.0,0.00044999,120]
[392154964,1761217846104,-500.0,0.00044999,120]
[392154965,1761217846114,-500.0,0.00044999,120]
[392154966,1761217846124,-250.0,0.00044999,120]
[392154967,1761217846135,-250.0,0.00044999,120]
[392154968,1761217846145,-500.0,0.00044999,120]
[392154969,1761217846156,-500.0,0.00044999,120]
[392154970,1761217846166,-500.0,0.00044999,120]
[392154971,1761217846175,-250.0,0.00044999,120]
[392154972,1761217846185,-500.0,0.00044999,120]
[392154973,1761217846194,-250.0,0.00044999,120]
[392154974,1761217846204,-500.0,0.00044999,120]
[392154975,1761217846215,-500.0,0.00044999,120]
[392154976,1761217846229,-250.0,0.00044999,120]
[392154977,1761217846249,-300.0,0.00044999,120]
[392154978,1761217846264,-250.0,0.00044999,120]
[392154979,1761217846273,-500.0,0.00044999,120]
[392154980,1761217846283,-500.0,0.00044999,120]
[392154981,1761217846293,-500.0,0.00044999,120]
[392154982,1761217846302,-250.0,0.00044999,120]
[392154983,1761217846312,-500.0,0.00044999,120]
[392154984,1761217846321,-264.28316117,0.00044999,120]
[392154985,1761217846330,-250.0,0.00044999,120]
[392154986,1761217846340,-500.0,0.00044999,120]
[392154987,1761217846349,-500.0,0.00044999,120]
[392154988,1761217846359,-250.0,0.00044999,120]
[392154989,1761217846368,-500.0,0.00044999,120]
[392154990,1761217846377,-500.0,0.00044999,120]
[392154991,1761217846386,-500.0,0.00044999,120]
[392154992,1761217846397,-250.0,0.00044999,120]
[392154993,1761217846407,-414.0,0.00044999,120]
[392154994,1761217846418,-500.0,0.00044999,120]
[392154995,1761217846428,-250.0,0.00044999,120]
[392154996,1761217846438,-500.0,0.00044999,120]
[392154997,1761217846448,-500.0,0.00044999,120]
[392154998,1761217846459,-250.0,0.00044999,120]
[392154999,1761217846468,-500.0,0.00044999,120]
[392155000,1761217846478,-429.318,0.00044999,120]
[392155001,1761217846489,-500.0,0.00044999,120]
[392155002,1761217846499,-250.0,0.00044999,120]
[392155003,1761217846509,-500.0,0.00044999,120]
[392155004,1761217846518,-500.0,0.00044999,120]
[392155005,1761217846528,-445.202766,0.00044999,120]
[392155006,1761217846538,-500.0,0.00044999,120]
[392155007,1761217846548,-250.0,0.00044999,120]
[392155008,1761217846663,-250.0,0.00044999,120]
[392155009,1761217846673,-500.0,0.00044999,120]
[392155010,1761217846684,-500.0,0.00044999,120]
[392155011,1761217846695,-461.67526834,0.00044999,120]
[392155012,1761217846705,-500.0,0.00044999,120]
[392155013,1761217846716,-250.0,0.00044999,120]
[392155014,1761217846726,-564.84999782,0.00044999,120]
[392155015,1761217846736,-500.0,0.00044999,120]
[392155016,1761217846745,-500.0,0.00044999,120]
[392155017,1761217846755,-500.0,0.00044999,120]
[392155018,1761217846764,-500.0,0.00044999,120]
[392155019,1761217846774,-478.75725327,0.00044999,120]
[392155020,1761217846784,-500.0,0.00044999,120]
[392155021,1761217846794,-500.0,0.00044999,120]
[392155022,1761217846804,-250.0,0.00044999,120]
[392155023,1761217846814,-250.0,0.00044999,120]
[392155024,1761217846824,-500.0,0.00044999,120]
[392155025,1761217846834,-500.0,0.00044999,120]
[392155026,1761217846843,-496.47127164,0.00044999,120]
[392155027,1761217846854,-500.0,0.00044999,120]
[392155028,1761217846864,-500.0,0.00044999,120]
[392155029,1761217846874,-250.0,0.00044999,120]
[392155030,1761217846884,-500.0,0.00044999,120]
[392155031,1761217846895,-500.0,0.00044999,120]
[392155032,1761217846905,-500.0,0.00044999,120]
[392155033,1761217846915,-514.84070869,0.00044999,120]
[392155034,1761217846924,-500.0,0.00044999,120]
[392155035,1761217846935,-250.0,0.00044999,120]
[392155036,1761217846944,-500.0,0.00044999,120]
[392155037,1761217846954,-500.0,0.00044999,120]
[392155038,1761217846964,-533.88981491,0.00044999,120]
[392155039,1761217846973,-500.0,0.00044999,120]
[392155040,1761217846983,-500.0,0.00044999,120]
[392155041,1761217846994,-250.0,0.00044999,120]
[392155043,1761217847004,-500.0,0.00044999,120]
[392155045,1761217847014,-500.0,0.00044999,120]
[392155047,1761217847023,-553.64373807,0.00044999,120]
[392155049,1761217847032,-500.0,0.00044999,120]
[392155051,1761217847042,-500.0,0.00044999,120]
[392155053,1761217847051,-500.0,0.00044999,120]
[392155055,1761217847060,-250.0,0.00044999,120]
[392155057,1761217847069,-500.0,0.00044999,120]
[392155059,1761217847079,-500.0,0.00044999,120]
[392155061,1761217847089,-574.12855637,0.00044999,120]
[392155063,1761217847098,-500.0,0.00044999,120]
[392155065,1761217847108,-500.0,0.00044999,120]
[392155067,1761217847118,-518.5,0.00044999,120]
[392155069,1761217847127,-250.0,0.00044999,120]
[392155070,1761217847136,-500.0,0.00044999,120]
[392155071,1761217847146,-595.37131296,0.00044999,120]
[392155072,1761217847155,-500.0,0.00044999,120]
[392155073,1761217847164,-537.6845,0.00044999,120]
[392155074,1761217847174,-250.0,0.00044999,120]
[392155075,1761217847185,-500.0,0.00044999,120]
[392155076,1761217847195,-500.0,0.00044999,120]
[392155077,1761217847204,-617.40005154,0.00044999,120]
[392155078,1761217847214,-557.5788265,0.00044999,120]
[392155079,1761217847224,-250.0,0.00044999,120]
[392155080,1761217847233,-500.0,0.00044999,120]
[392155081,1761217847243,-500.0,0.00044999,120]
[392155082,1761217847252,-640.24385345,0.00044999,120]
[392155083,1761217847262,-578.20924308,0.00044999,120]
[392155084,1761217847272,-500.0,0.00044999,120]
[392155085,1761217847282,-500.0,0.00044999,120]
[392155086,1761217847292,-663.93287602,0.00044999,120]
[392155087,1761217847301,-599.60298507,0.00044999,120]
[392155088,1761217847311,-500.0,0.00044999,120]
[392155089,1761217847321,-688.49839244,0.00044999,120]
[392155090,1761217847331,-250.0,0.00044999,120]
[392155091,1761217847341,-621.78829552,0.00044999,120]
[392155092,1761217847351,-500.0,0.00044999,120]
[392155093,1761217847364,-713.97283296,0.00044999,120]
[392155094,1761217847374,-250.0,0.00044999,120]
[392155095,1761217847383,-644.79446246,0.00044999,120]
[392155096,1761217847393,-500.0,0.00044999,120]
[392155097,1761217847402,-740.38982778,0.00044999,120]
[392155098,1761217847412,-250.0,0.00044999,120]
[392155099,1761217847421,-668.65185757,0.00044999,120]
[392155100,1761217847430,-767.7842514,0.00044999,120]
[392155101,1761217847439,-500.0,0.00044999,120]
[392155102,1761217847449,-693.3919763,0.00044999,120]
[392155103,1761217847458,-250.0,0.00044999,120]
[392155104,1761217847467,-796.19226871,0.00044999,120]
[392155105,1761217847477,-500.0,0.00044999,120]
[392155106,1761217847486,-719.04747942,0.00044999,120]
[392155107,1761217847496,-250.0,0.00044999,120]
[392155108,1761217847506,-825.65138265,0.00044999,120]
[392155109,1761217847516,-500.0,0.00044999,120]
[392155110,1761217847526,-745.65223616,0.00044999,120]
[392155111,1761217847535,-250.0,0.00044999,120]
[392155112,1761217847545,-500.0,0.00044999,120]
[392155113,1761217847554,-432.15999199,0.00044999,120]
[392155114,1761217847564,-250.0,0.00044999,120]
[392155115,1761217847574,-500.0,0.00044999,120]
[392155116,1761217847583,-250.0,0.00044999,120]
[392155117,1761217847592,-500.0,0.00044999,120]
[392155118,1761217847603,-250.0,0.00044999,120]
[392155119,1761217847613,-500.0,0.00044999,120]
[392155120,1761217847623,-250.0,0.00044999,120]
[392155121,1761217847632,-600.0,0.00044999,120]
[392155122,1761217847642,-250.0,0.00044999,120]
[392155123,1761217847651,-600.0,0.00044999,120]
[392155124,1761217847661,-250.0,0.00044999,120]
[392155125,1761217847670,-250.0,0.00044999,120]
[392155126,1761217847680,-600.0,0.00044999,120]
[392155127,1761217847689,-250.0,0.00044999,120]
[392155128,1761217847698,-600.0,0.00044999,120]
[392155129,1761217847708,-250.0,0.00044999,120]
[392155130,1761217847717,-250.0,0.00044999,120]
[392155131,1761217847726,-600.0,0.00044999,120]
[392155132,1761217847736,-250.0,0.00044999,120]
[392155133,1761217847745,-250.0,0.00044999,120]
[392155134,1761217847755,-600.0,0.00044999,120]
[392155135,1761217847764,-250.0,0.00044999,120]
[392155136,1761217847773,-600.0,0.00044999,120]
[392155137,1761217847782,-250.0,0.00044999,120]
[392155138,1761217847792,-600.0,0.00044999,120]
[392155139,1761217847802,-250.0,0.00044999,120]
[392155140,1761217847811,-600.0,0.00044999,120]
[392155141,1761217847820,-250.0,0.00044999,120]
[392155142,1761217847830,-600.0,0.00044999,120]
[392155143,1761217847840,-250.0,0.00044999,120]
[392155144,1761217847849,-17622.67049193,0.00044999,120]
[392155145,1761217847859,-14695.35860035,0.00045,18]
[392155146,1761217847868,-96108.39930783,0.00045,120]
[392155147,1761217847878,-29815.29091465,0.00045,45]
[392155148,1761217847887,-164000.0,0.00045,120]
[392155149,1761217847897,-500000.0,0.00045,120]
[392155150,1761217847907,-500000.0,0.00045,120]
[392155151,1761217847916,-500000.0,0.00045,120]
[392155152,1761217847926,-1000000.0,0.00045,120]
[392155153,1761217847936,-29212.12,0.00045,14]
[392155154,1761217847946,-1000000.0,0.00045,120]
[392155155,1761217847956,-1971.89,0.00045,14]
[392155156,1761217847966,-200.0,0.00045,7]
[392155157,1761217847975,-151.0,0.00045,120]
[392155158,1761217847984,-151.0,0.00045,120]
[392155159,1761217847995,-151.0,0.00045,120]
[392155160,1761217848003,-1718.0110532,0.00045,120]
[392155161,1761217848013,-155.555443,0.00045,120]
[392155162,1761217848024,-580.24976083,0.00045,28]
[392155163,1761217848034,-155.395566,0.00045,120]
[392155164,1761217848044,-152.502426,0.00045,120]
[392155165,1761217848055,-153.455567,0.00045,120]
[392155166,1761217848065,-151.0,0.00045,120]
[392155167,1761217848076,-154.2739,0.00045,120]
[392155168,1761217848085,-215.244095,0.00045,120]
[392155169,1761217848095,-153.16293,0.00045,30]
[392155170,1761217848104,-151.0,0.00045,120]
[392155171,1761217848114,-151.0,0.00045,120]
[392155172,1761217848124,-151.0,0.00045,120]
[392155173,1761217848133,-151.0,0.00045,120]
[392155174,1761217848143,-268.652213,0.00045,120]
[392155175,1761217848152,-154.2615,0.00045,120]
[392155176,1761217848162,-156.760659,0.00045,120]
[392155177,1761217848171,-151.0,0.00045,120]
[392155178,1761217848180,-158.583427,0.00045,120]
[392155179,1761217848189,-261.531251,0.00045,120]
[392155180,1761217848199,-151.0,0.00045,120]
[392155181,1761217848208,-151.0,0.00045,120]
[392155182,1761217848218,-151.0,0.00045,120]
[392155183,1761217848228,-45389.62201038,0.00045,120]
[392155184,1761217848238,-162.198999,0.00045,120]
[392155185,1761217848247,-153.708584,0.00045,120]
[392155186,1761217848258,-153.237948,0.00045,120]
[392155187,1761217848268,-151.0,0.00045,120]
[392155188,1761217848277,-158.302613,0.00045,120]
[392155189,1761217848288,-151.0,0.00045,120]
[392155190,1761217848298,-153.454905,0.00045,120]
[392155191,1761217848308,-156.193266,0.00045,120]
[392155192,1761217848318,-249.683898,0.00045,120]
[392155193,1761217848328,-152.680624,0.00045,120]
[392155194,1761217848338,-249.683898,0.00045,120]
[392155195,1761217848347,-249.683898,0.00045,120]
[392155196,1761217848357,-249.683898,0.00045,120]
[392155197,1761217848368,-249.683898,0.00045,120]
[392155198,1761217848378,-249.683898,0.00045,120]
[392155199,1761217848387,-249.683898,0.00045,120]
[392155200,1761217848397,-249.683898,0.00045,120]
[392155201,1761217848406,-249.683898,0.00045,120]
[392155202,1761217848416,-151.0,0.00045,120]
[392155203,1761217848425,-249.683898,0.00045,120]
[392155204,1761217848435,-249.683898,0.00045,120]
[392155205,1761217848444,-249.683898,0.00045,120]
[392155206,1761217848453,-400.0,0.00045,120]
[392155207,1761217848463,-400.0,0.00045,120]
[392155208,1761217848472,-151.0,0.00045,120]
[392155209,1761217848482,-400.0,0.00045,120]
[392155210,1761217848491,-151.0,0.00045,120]
[392155211,1761217848501,-400.0,0.00045,120]
[392155212,1761217848510,-400.0,0.00045,120]
[392155213,1761217848520,-400.0,0.00045,120]
[392155214,1761217848530,-400.0,0.00045,120]
[392155215,1761217848540,-400.0,0.00045,120]
[392155216,1761217848550,-400.0,0.00045,120]
[392155217,1761217848560,-400.0,0.00045,120]
[392155218,1761217848570,-400.0,0.00045,120]
[392155219,1761217848580,-400.0,0.00045,120]
[392155220,1761217848590,-151.0,0.00045,120]
[392155221,1761217848601,-151.0,0.00045,120]
[392155222,1761217848612,-159.356829,0.00045,120]
[392155223,1761217848622,-151.0,0.00045,120]
[392155224,1761217848631,-151.0,0.00045,120]
[392155225,1761217848640,-151.0,0.00045,120]
[392155226,1761217848651,-151.0,0.00045,120]
[392155227,1761217848661,-153.569948,0.00045,120]
[392155228,1761217848671,-156.258713,0.00045,120]
[392155229,1761217848681,-180.020172,0.00045,120]
[392155230,1761217848691,-151.0,0.00045,30]
[392155231,1761217848701,-156.598677,0.00045,120]
[392155232,1761217848713,-151.0,0.00045,120]
[392155233,1761217848724,-151.0,0.00045,120]
[392155234,1761217848735,-167.510446,0.00045,120]
[392155235,1761217848745,-151.0,0.00045,120]
[392155236,1761217848755,-151.0,0.00045,120]
[392155237,1761217848766,-151.0,0.00045,120]
[392155238,1761217848776,-272.7454,0.00045,120]
[392155239,1761217848787,-153.700556,0.00045,120]
[392155240,1761217848798,-151.0,0.00045,120]
[392155241,1761217848808,-151.0,0.00045,120]
[392155242,1761217848817,-199.026921,0.00045,120]
[392155243,1761217848827,-162.247465,0.00045,120]
[392155244,1761217848836,-284.862604,0.00045,15]
[392155245,1761217848846,-151.0,0.00045,120]
[392155246,1761217848856,-151.0,0.00045,120]
[392155247,1761217848865,-162.935622,0.00045,120]
[392155248,1761217848876,-151.0,0.00045,120]
[392155249,1761217848885,-151.0,0.00045,120]
[392155250,1761217848895,-152.930209,0.00045,120]
[392155251,1761217848904,-151.0,0.00045,120]
[392155252,1761217848915,-1465.35775,0.00045,120]
[392155253,1761217848925,-1465.35775,0.00045,120]
[392155254,1761217848935,-1465.35775,0.00045,120]
[392155255,1761217848945,-151.0,0.00045,120]
[392155256,1761217848955,-151.0,0.00045,120]
[392155257,1761217848965,-151.0,0.00045,120]
[392155258,1761217848974,-166.191257,0.00045,120]
[392155259,1761217848984,-151.0,0.00045,120]
[392155260,1761217848994,-164.421759,0.00045,120]
[392155261,1761217849105,-151.0,0.00045,120]
[392155262,1761217849115,-151.0,0.00045,120]
[392155263,1761217849125,-234.36611,0.00045,120]